fUST/lending_fUST_20260302
["ID","MTS","AMOUNT","RATE_DAILY","PERIOD"]
[406990324,1772424640579,-151.0,0.00013819,2]
[406990326,1772424640587,-151.0,0.00013819,2]
[406990328,1772424640596,-1000.0,0.00013821,2]
[406990330,1772424640605,-1000.0,0.00013821,2]
[406990332,1772424640614,-1000.0,0.00013821,2]
[406990334,1772424640624,-1000.0,0.00013821,2]
[406990336,1772424640633,-1000.0,0.00013821,2]
[406990338,1772424640643,-1000.0,0.00013821,2]
[406990340,1772424640652,-1000.0,0.00013821,2]
[406990342,1772424640662,-1000.0,0.00013821,2]
[406990344,1772424640671,-500.80323735,0.00013821,2]
[406990346,1772424640680,-1000.0,0.00013821,2]
[406990348,1772424640689,-509.70432638,0.00013821,2]
[406990350,1772424640698,-151.0,0.00013821,2]
[406990352,1772424640707,-151.0,0.00013821,2]
[406990354,1772424640716,-151.0,0.00013821,2]
[406990356,1772424640725,-151.0,0.00013821,2]
[406990357,1772424640734,-151.0,0.00013821,2]
[406990359,1772424640743,-156.747745,0.00013821,2]
[406990361,1772424640753,-8186.42738846,0.00014175,2]
[406990363,1772424640762,-486.28456337,0.00014175,2]
[406990365,1772424640771,-151.0,0.00014175,2]
[406990368,1772424640781,-152.07120751,0.00014221,2]
[406990370,1772424640790,-1000.0,0.00014247,2]
[406990371,1772424640799,-1000.0,0.00014247,2]
[406990373,1772424640809,-1000.0,0.00014247,2]
[406990375,1772424640819,-1000.0,0.00014247,2]
[406990377,1772424640828,-509.59630739,0.00014247,2]
[406990379,1772424640837,-1000.0,0.00014247,2]
[406990381,1772424640846,-1000.0,0.00014247,2]
[406990383,1772424640855,-1000.0,0.00014247,2]
[406990385,1772424640864,-508.98057469,0.00014247,2]
[406990387,1772424640879,-278.11748307,0.00014247,2]
[406990389,1772424640888,-1000.0,0.00014247,2]
[406990391,1772424640897,-504.37767049,0.00014247,2]
[406990393,1772424640907,-1002.93770137,0.00014247,2]
[406990395,1772424640915,-1000.0,0.00014247,2]
[406990397,1772424640925,-151.489235,0.00014247,2]
[406990399,1772424640933,-151.489235,0.00014247,2]
[406990401,1772424640943,-151.489235,0.00014247,2]
[406990403,1772424640952,-151.489235,0.00014247,2]
[406990405,1772424640962,-151.0,0.00014247,2]
[406990407,1772424640971,-151.0,0.00014247,2]
[406990409,1772424640981,-151.0,0.00014247,2]
[406990411,1772424640990,-151.0,0.00014247,2]
[406990413,1772424641000,-151.0,0.00014368,2]
[406990415,1772424641009,-233.73641,0.00014368,2]
[406990417,1772424641018,-1500.0,0.00014368,2]
[406990418,1772424641027,-1043.93399448,0.00014368,2]
[406990420,1772424641036,-1500.0,0.00014368,2]
[406990422,1772424641045,-1500.0,0.00014368,2]
[406990424,1772424641054,-1500.0,0.00014368,2]
[406990426,1772424641064,-1011.19894761,0.00014368,2]
[406990428,1772424641073,-1500.0,0.00014368,2]
[406990430,1772424641085,-166.78445959,0.00014368,2]
[406990432,1772424641093,-1506.23549642,0.00014368,2]
[406990434,1772424641102,-16369.44177038,0.00014375,2]
[406990436,1772424641113,-151.489235,0.00014375,2]
[406990438,1772424641123,-151.489235,0.00014375,2]
[406990440,1772424641132,-151.489235,0.00014375,2]
[406990442,1772424641141,-151.489235,0.00014375,2]
[406990444,1772424641150,-151.0,0.00014375,2]
[406990446,1772424641160,-151.0,0.00014375,2]
[406990448,1772424641169,-151.0,0.00014375,2]
[406990450,1772424641179,-151.0,0.00014375,2]
[406990452,1772424641188,-151.0,0.00014375,2]
[406990454,1772424641198,-720.0,0.00014442,2]
[406990456,1772424641208,-18171.60196709,0.00014475,2]
[406990457,1772424641217,-151.0,0.00014475,2]
[406990458,1772424641227,-1417.12545226,0.00014572,2]
[406990459,1772424641239,-20241.06847116,0.00014675,2]
[406990460,1772424641249,-151.489235,0.00014675,2]
[406990461,1772424641258,-151.489235,0.00014675,2]
[406990462,1772424641268,-151.489235,0.00014675,2]
[406990463,1772424641277,-151.489235,0.00014675,2]
[406990464,1772424641287,-168.023059,0.00014675,2]
[406990465,1772424641296,-151.0,0.00014675,2]
[406990466,1772424641306,-151.0,0.00014675,2]
[406990467,1772424641316,-151.0,0.00014675,2]
[406990468,1772424641326,-151.0,0.00014675,2]
[406990469,1772424641336,-159.29145623,0.00014721,2]
[406990470,1772424641346,-1082.77169159,0.00014795,2]
[406990471,1772424641356,-1079.86046473,0.00014795,2]
[406990472,1772424641365,-1201.64642155,0.00014795,2]
[406990473,1772424641374,-586.36914183,0.00014795,2]
[406990475,1772424641384,-1500.0,0.00014795,2]
[406990476,1772424641393,-514.3302479,0.00014795,2]
[406990478,1772424641403,-328.3307201,0.00014795,2]
[406990480,1772424641411,-1500.0,0.00014795,2]
[406990482,1772424641421,-1500.0,0.00014795,2]
[406990484,1772424641431,-420.77764495,0.00014834,2]
[406990486,1772424641440,-757.3997609,0.00014834,2]
[406990488,1772424641449,-1345.14197536,0.00014834,2]
[406990490,1772424641458,-151.0,0.00014916,2]
[406990492,1772424641468,-1039.22094687,0.00014916,2]
[406990494,1772424641477,-889.47730649,0.00014916,2]
[406990496,1772424641488,-2000.0,0.00014916,2]
[406990498,1772424641497,-2000.0,0.00014916,2]
[406990500,1772424641506,-1515.0154598,0.00014916,2]
[406990502,1772424641515,-200.0,0.00015065,2]
[406990504,1772424641524,-2000.0,0.00015342,2]
[406990506,1772424641533,-791.19041654,0.00015342,2]
[406990508,1772424641542,-239.89194475,0.00015342,2]
[406990510,1772424641551,-2510.24192977,0.00015464,2]
[406990513,1772424641561,-2508.23835593,0.00015464,2]
[406990515,1772424641570,-897.29902971,0.0001549,2]
[406990517,1772424641580,-151.0,0.000156,2]
[406990519,1772424641590,-375.32388212,0.00015615,2]
[406990521,1772424641599,-428.51263799,0.00015615,2]
[406990522,1772424641608,-204.0,0.00015666,2]
[406990524,1772424641618,-1500.0,0.000158,2]
[406990526,1772424641627,-1500.0,0.000158,2]
[406990528,1772424641636,-1500.0,0.000158,2]
[406990530,1772424641645,-1500.0,0.000158,2]
[406990532,1772424641654,-1500.0,0.000158,2]
[406990534,1772424641663,-2629.284545,0.000158,2]
[406990536,1772424641672,-151.489235,0.000158,2]
[406990538,1772424641681,-151.489235,0.000158,2]
[406990540,1772424641690,-151.489235,0.000158,2]
[406990542,1772424641699,-151.48923,0.000158,2]
[406990544,1772424641709,-250.0,0.00015883,2]
[406990547,1772424641718,-621.78829552,0.00015883,2]
[406990549,1772424641728,-250.0,0.00015883,2]
[406990551,1772424641737,-250.0,0.00015883,2]
[406990553,1772424641746,-250.0,0.00015883,2]
[406990555,1772424641755,-250.0,0.00015883,2]
[406990557,1772424641764,-250.0,0.00015883,2]
[406990559,1772424641773,-250.0,0.00015883,2]
[406990560,1772424641782,-250.0,0.00015883,2]
[406990563,1772424641791,-250.0,0.00015883,2]
[406990564,1772424641800,-250.0,0.00015883,2]
[406990566,1772424641809,-187.78006525,0.00015883,2]
[406990568,1772424641819,-250.0,0.00015883,2]
[406990571,1772424641829,-500.0,0.00015883,2]
[406990573,1772424641838,-250.0,0.00015883,2]
[406990575,1772424641847,-194.72792766,0.00015883,2]
[406990577,1772424641856,-250.0,0.00015883,2]
[406990579,1772424641865,-500.0,0.00015883,2]
[406990581,1772424641874,-250.0,0.00015883,2]
[406990583,1772424641883,-201.93286099,0.00015883,2]
[406990585,1772424641893,-250.0,0.00015883,2]
[406990587,1772424641902,-500.0,0.00015883,2]
[406990589,1772424641912,-250.0,0.00015883,2]
[406990591,1772424641921,-250.0,0.00015883,2]
[406990592,1772424641930,-209.40437684,0.00015883,2]
[406990593,1772424641940,-500.0,0.00015883,2]
[406990595,1772424641950,-250.0,0.00015883,2]
[406990597,1772424641959,-209.04663394,0.00015883,2]
[406990599,1772424641968,-217.15233878,0.00015883,2]
[406990601,1772424641977,-500.0,0.00015883,2]
[406990603,1772424641986,-500.0,0.00015883,2]
[406990605,1772424641995,-225.18697532,0.00015883,2]
[406990607,1772424642005,-250.0,0.00015883,2]
[406990609,1772424642014,-500.0,0.00015883,2]
[406990611,1772424642024,-500.0,0.00015883,2]
[406990613,1772424642033,-250.0,0.00015883,2]
[406990615,1772424642042,-233.51889341,0.00015883,2]
[406990617,1772424642052,-250.0,0.00015883,2]
[406990619,1772424642061,-500.0,0.00015883,2]
[406990621,1772424642071,-500.0,0.00015883,2]
[406990623,1772424642080,-242.15909246,0.00015883,2]
[406990625,1772424642089,-250.0,0.00015883,2]
[406990627,1772424642101,-258.11124893,0.00015883,2]
[406990630,1772424642111,-500.0,0.00015883,2]
[406990632,1772424642121,-500.0,0.00015883,2]
[406990634,1772424642130,-250.0,0.00015883,2]
[406990636,1772424642139,-251.11897888,0.00015883,2]
[406990638,1772424642148,-500.0,0.00015883,2]
[406990640,1772424642157,-500.0,0.00015883,2]
[406990641,1772424642167,-250.0,0.00015883,2]
[406990644,1772424642176,-260.4103811,0.00015883,2]
[406990646,1772424642186,-527.56970476,0.00015883,2]
[406990647,1772424642195,-500.0,0.00015883,2]
[406990649,1772424642204,-250.0,0.00015883,2]
[406990651,1772424642213,-270.0455652,0.00015883,2]
[406990652,1772424642223,-500.0,0.00015883,2]
[406990653,1772424642233,-250.0,0.00015883,2]
[406990654,1772424642246,-280.03725112,0.00015883,2]
[406990655,1772424642256,-500.0,0.00015883,2]
[406990656,1772424642265,-500.0,0.00015883,2]
[406990657,1772424642275,-250.0,0.00015883,2]
[406990658,1772424642284,-250.0,0.00015883,2]
[406990660,1772424642293,-290.39862941,0.00015883,2]
[406990662,1772424642302,-500.0,0.00015883,2]
[406990663,1772424642311,-250.0,0.00015883,2]
[406990664,1772424642323,-250.0,0.00015883,2]
[406990665,1772424642333,-301.1433787,0.00015883,2]
[406990667,1772424642343,-500.0,0.00015883,2]
[406990668,1772424642353,-250.0,0.00015883,2]
[406990669,1772424642362,-250.0,0.00015883,2]
[406990670,1772424642371,-530.09077207,0.00015883,2]
[406990671,1772424642380,-250.0,0.00015883,2]
[406990672,1772424642389,-250.0,0.00015883,2]
[406990673,1772424642399,-250.0,0.00015883,2]
[406990674,1772424642408,-250.0,0.00015883,2]
[406990675,1772424642418,-265.47979901,0.00015883,2]
[406990676,1772424642427,-250.0,0.00015883,2]
[406990677,1772424642436,-250.0,0.00015883,2]
[406990678,1772424642445,-398.75711669,0.00015883,2]
[406990679,1772424642454,-163.01644535,0.00015883,2]
[406990680,1772424642464,-250.0,0.00015883,2]
[406990681,1772424642474,-250.0,0.00015883,2]
[406990682,1772424642484,-250.0,0.00015883,2]
[406990683,1772424642493,-250.0,0.00015883,2]
[406990684,1772424642502,-250.0,0.00015883,2]
[406990685,1772424642512,-250.0,0.00015883,2]
[406990686,1772424642523,-864.0,0.00015887,2]
[406990687,1772424642532,-2512.47983104,0.0001589,2]
[406990688,1772424642542,-151.0,0.000159,2]
[406990689,1772424642552,-504.2154133,0.00015994,7]
[406990690,1772424642562,-150.0,0.00015999,2]
[406990691,1772424642572,-150.0,0.00015999,2]
[406990692,1772424642581,-150.0,0.00015999,2]
[406990693,1772424642593,-150.0,0.00015999,2]
[406990694,1772424642602,-150.0,0.00015999,2]
[406990695,1772424642612,-500.0,0.00015999,2]
[406990696,1772424642621,-150.0,0.00015999,2]
[406990697,1772424642631,-153.90080268,0.00015999,2]
[406990698,1772424642641,-212.41403298,0.00016054,2]
[406990699,1772424642650,-150.0,0.00016054,2]
[406990700,1772424642659,-150.0,0.00016054,2]
[406990701,1772424642668,-150.0,0.00016054,2]
[406990702,1772424642678,-207.09400052,0.00016054,2]
[406990703,1772424642687,-500.0,0.00016054,2]
[406990704,1772424642696,-254.6902158,0.00016054,2]
[406990705,1772424642706,-151.0,0.000161,2]
[406990706,1772424642715,-198.37687575,0.00016109,2]
[406990707,1772424642724,-150.0,0.00016109,2]
[406990708,1772424642733,-208.91348535,0.00016109,2]
[406990709,1772424642742,-500.0,0.00016109,2]
[406990710,1772424642752,-150.0,0.00016163,2]
[406990711,1772424642763,-500.0,0.00016163,2]
[406990712,1772424642773,-156.93949943,0.00016218,2]
[406990713,1772424642782,-500.0,0.00016218,2]
[406990714,1772424642791,-545113.95836239,0.00016236,2]
[406990722,1772424643634,-3886.67112845,0.00012205,2]
[406990723,1772424643646,-1051.94771954,0.00012205,2]
[406990727,1772424646498,-61.38115201,0.00012205,2]
[406990728,1772424646508,-237.69,0.00012329,2]
[406990729,1772424646518,-250.0,0.00015883,2]
[406990730,1772424646527,-250.0,0.00015883,2]
[406990731,1772424646537,-1440.00342686,0.00015883,2]
[406990732,1772425234367,344.0,0.00012329,60]
[406990734,1772425330206,169.011539,4.761e-05,2]
[406990735,1772425330403,169.011539,7.142e-05,2]
[406990736,1772425330596,169.011539,9.523e-05,2]
[406990737,1772425416331,5000.0,0.0001001,2]
[406990738,1772425431525,5000.0,0.0001001,2]
[406990739,1772425454804,1143.89127943,0.0001001,2]
[406990740,1772425632743,5000.0,0.0001001,2]
[406990741,1772425655272,5000.0,0.0001001,2]
[406990742,1772425677253,5000.0,0.0001001,2]
[406990743,1772425685417,214.4299137,9.771e-05,2]
[406990744,1772425690094,2000.0,0.0001001,2]
[406990745,1772425699286,5000.0,0.0001001,2]
[406990747,1772425721444,5000.0,0.0001001,2]
[406990748,1772425743374,5000.0,0.0001001,2]
[406990749,1772425765612,5000.0,0.0001001,2]
[406990750,1772425787677,5000.0,0.0001001,2]
[406990751,1772425809672,1920.20603372,0.0001001,2]
[406990773,1772425832576,-562.0,0.00010166,2]
[406990774,1772425832589,-150.0,0.00010166,2]
[406990775,1772425832599,-200.0,0.00010227,2]
[406990776,1772425832609,-175.50984309,0.00010699,2]
[406990777,1772425832619,-172.17610256,0.00010795,2]
[406990778,1772425832629,-500.0,0.00010795,2]
[406990779,1772425832640,-304.65834723,0.00010795,2]
[406990780,1772425832650,-500.0,0.00010795,2]
[406990781,1772425832662,-618.24546125,0.00010795,2]
[406990782,1772425832672,-500.0,0.00010795,2]
[406990783,1772425832682,-500.0,0.00010795,2]
[406990784,1772425832691,-500.0,0.00010795,2]
[406990785,1772425832701,-500.0,0.00010795,2]
[406990786,1772425832711,-500.0,0.00010795,2]
[406990787,1772425832721,-500.0,0.00010795,2]
[406990788,1772425832731,-500.0,0.00010795,2]
[406990789,1772425832740,-500.0,0.00010795,2]
[406990790,1772425832750,-500.0,0.00010795,2]
[406990791,1772425832760,-500.0,0.00010795,2]
[406990792,1772425832769,-430.54688718,0.00010795,2]
[406990793,1772425832780,-300.0,0.00010799,2]
[406990794,1772425832790,-1200.0,0.00010799,2]
[406990795,1772425832800,-11703.52771852,0.000108,2]
[406990796,1772425832811,-16196.59483232,0.000108,2]
[406990797,1772425832823,-981.91982806,0.000108,2]
[406990798,1772425832835,-2674.60070925,0.000108,2]
[406990799,1772425832844,-500.0,0.000108,2]
[406990800,1772425832855,-500.0,0.000108,2]
[406990801,1772425832864,-500.0,0.000108,2]
[406990802,1772425832874,-500.0,0.000108,2]
[406990803,1772425832884,-500.0,0.000108,2]
[406990804,1772425832894,-782.61664718,0.000108,2]
[406990805,1772425832904,-426.05650386,0.000108,2]
[406990806,1772425832915,-73.94349614,0.000108,2]
[406990807,1772425832925,-647.59110955,0.000108,2]
[406990808,1772425832935,-259.505351,0.00010816,2]
[406990809,1772425832944,-211.14937627,0.00011272,2]
[406990810,1772425838667,-48.35597473,0.00011272,2]
[406990812,1772425838676,-259.505351,0.00011727,2]
[406990814,1772425838686,-420.0,0.00011869,2]
[406990815,1772425838696,-1068.0,0.00011879,2]
[406990816,1772425838706,-177.0,0.00012166,2]
[406990817,1772425838716,-259.505351,0.00012182,2]
[406990818,1772425838726,-259.505351,0.00012638,2]
[406990819,1772425838736,-427.86450819,0.00012678,2]
[406990820,1772425838745,-1062.84408923,0.000129,2]
[406990821,1772425838755,-1062.84408919,0.000129,2]
[406990822,1772425838765,-259.505351,0.00013093,2]
[406990823,1772425838775,-600.0,0.00013127,2]
[406990824,1772425838784,-500.0,0.00013273,2]
[406990825,1772425838794,-500.0,0.00013273,2]
[406990826,1772425838803,-500.0,0.00013273,2]
[406990827,1772425838812,-500.0,0.00013273,2]
[406990828,1772425838822,-500.0,0.00013273,2]
[406990829,1772425838832,-312.88490144,0.00013273,2]
[406990830,1772425838841,-360.7412483,0.00013273,2]
[406990831,1772425838850,-500.0,0.00013273,2]
[406990832,1772425838859,-500.0,0.00013273,2]
[406990833,1772425838869,-500.0,0.00013273,2]
[406990834,1772425838878,-500.0,0.00013273,2]
[406990835,1772425838887,-513.37576481,0.00013273,2]
[406990836,1772425838897,-281.52692848,0.00013673,2]
[406990837,1772425838907,-500.0,0.00013698,2]
[406990838,1772425838916,-500.0,0.00013698,2]
[406990839,1772425838926,-500.0,0.00013698,2]
[406990840,1772425838936,-500.0,0.00013698,2]
[406990841,1772425838946,-500.0,0.00013698,2]
[406990842,1772425838956,-500.0,0.00013698,2]
[406990843,1772425838965,-500.0,0.00013698,2]
[406990844,1772425838975,-500.0,0.00013698,2]
[406990845,1772425838985,-500.0,0.00013698,2]
[406990846,1772425838994,-173.67785905,0.00013698,2]
[406990847,1772425839004,-500.0,0.00013699,2]
[406990848,1772425839013,-570.2653034,0.00013699,2]
[406990849,1772425839023,-501.0613791,0.00013699,2]
[406990850,1772425839032,-500.58131771,0.00013699,2]
[406990851,1772425839042,-224.22088471,0.00013699,2]
[406990852,1772425839052,-500.0,0.00013699,2]
[406990853,1772425839062,-500.0,0.00013699,2]
[406990854,1772425839071,-537.49838845,0.00013699,2]
[406990855,1772425839081,-501.33648771,0.00013699,2]
[406990856,1772425839091,-1000.0,0.00013821,2]
[406990857,1772425839100,-502.40224046,0.00013821,2]
[406990858,1772425839110,-500.0,0.00013821,2]
[406990859,1772425839120,-1006.24333284,0.00013821,2]
[406990860,1772425839129,-1000.0,0.00013821,2]
[406990861,1772425839138,-501.54028408,0.00013821,2]
[406990862,1772425839148,-559.62590666,0.00013821,2]
[406990863,1772425839157,-354.40414725,0.00013821,2]
[406990864,1772425839167,-1000.0,0.00013821,2]
[406990865,1772425839176,-500.0,0.00013973,2]
[406990866,1772425839185,-158.7921443,0.00014166,2]
[406990867,1772425839194,-527.08972352,0.00014247,2]
[406990868,1772425839204,-720.0,0.0001444,2]
[406990869,1772425839213,-217.39172667,0.0001483,2]
[406990870,1772425839223,-1062.84408919,0.00014891,2]
[406990871,1772425839232,-151.0,0.00015552,2]
[406990872,1772425839242,-187.78006525,0.00015552,2]
[406990873,1772425839252,-194.72792766,0.00015552,2]
[406990874,1772425839261,-250.0,0.00015552,2]
[406990875,1772425839271,-201.93286099,0.00015552,2]
[406990876,1772425839280,-250.0,0.00015552,2]
[406990877,1772425839290,-209.40437684,0.00015552,2]
[406990878,1772425839299,-326.8558439,0.00015552,2]
[406990879,1772425839308,-500.0,0.00015552,2]
[406990880,1772425839318,-217.15233878,0.00015552,2]
[406990881,1772425839328,-500.0,0.00015552,2]
[406990882,1772425839337,-225.18697532,0.00015552,2]
[406990883,1772425839347,-500.0,0.00015552,2]
[406990884,1772425839357,-233.51889341,0.00015552,2]
[406990885,1772425839366,-500.0,0.00015552,2]
[406990886,1772425839375,-242.15909246,0.00015552,2]
[406990887,1772425839384,-500.0,0.00015552,2]
[406990888,1772425839394,-251.11897888,0.00015552,2]
[406990889,1772425839403,-500.0,0.00015552,2]
[406990890,1772425839413,-260.4103811,0.00015552,2]
[406990891,1772425839422,-500.0,0.00015552,2]
[406990892,1772425839432,-322.19514337,0.00015552,2]
[406990893,1772425839440,-500.0,0.00015552,2]
[406990894,1772425839450,-500.0,0.00015552,2]
[406990895,1772425839664,-500.0,0.00015552,2]
[406990896,1772425839675,-500.0,0.00015552,2]
[406990897,1772425839685,-500.0,0.00015552,2]
[406990898,1772425839695,-2487.15318209,0.00015552,2]
[406990899,1772425839705,-621.78829552,0.00015552,2]
[406990900,1772425839715,-500.0,0.00015882,2]
[406990901,1772425839725,-731.69771705,0.00015884,2]
[406990902,1772425839750,-132.30228295,0.00015884,2]
[406990903,1772425839759,-627.58517199,0.00015991,7]
[406990904,1772425839769,-581.14396111,0.00015991,7]
[406990905,1772425839779,-500.0,0.00015999,2]
[406990906,1772425839789,-500.0,0.00016054,2]
[406990907,1772425839799,-166.10833828,0.000161,2]
[406990908,1772425839808,-2083.59796156,0.000161,2]
[406990909,1772425839831,-435.0,0.000161,2]
[406990915,1772425842607,152.2532246,0.0001001,2]
[406990924,1772425843629,-60.57988827,0.000161,2]
[406990926,1772425843639,-380.53522697,0.000161,2]
[406990928,1772425843648,-150.0,0.00016109,2]
[406990930,1772425843658,-1159.73488476,0.00016174,2]
[406990934,1772425843683,-353.45,0.00016174,2]
[406991119,1772425846727,-14510.56506989,0.00016174,2]
[406991120,1772425846740,-8422.54007878,0.00016174,2]
[406991121,1772425861409,152.2532246,0.0001001,2]
[406991122,1772425960547,203.0,0.000158,120]
[406991123,1772426009961,203.0,0.000158,120]
[406991124,1772426054289,203.0,0.000158,120]
[406991125,1772426096982,203.0,0.000158,120]
[406991126,1772426149980,379.0,0.000158,120]
[406991127,1772426204745,406.0,0.000158,120]
[406991128,1772426242558,1995.55664465,0.0001001,2]
[406991129,1772426292093,495.9,0.0001001,2]
[406991130,1772426358118,-2000.0,0.00010174,2]
[406991131,1772426360140,-1819.12451185,0.00010174,2]
[406991132,1772426360162,-180.87548815,0.00010277,2]
[406991133,1772426360272,-2000.0,0.00010277,2]
[406991134,1772426360650,-476.91255364,0.00010277,2]
[406991135,1772426360673,-204.0,0.00010329,2]
[406991136,1772426360694,-172.20581345,0.00010696,2]
[406991137,1772426360732,-457.58282903,0.00010795,2]
[406991138,1772426360765,-270.06076524,0.00010795,2]
[406991139,1772426360802,-419.23803864,0.00010795,2]
[406991140,1772426360982,-80.76196136,0.00010795,2]
[406991141,1772426361016,-500.0,0.00010795,2]
[406991142,1772426361051,-500.0,0.00010795,2]
[406991143,1772426361082,-500.0,0.00010795,2]
[406991144,1772426361116,-419.23803864,0.00010795,2]
[406991145,1772426361380,-80.76196136,0.00010795,2]
[406991146,1772426361410,-500.0,0.00010795,2]
[406991147,1772426361439,-500.0,0.00010795,2]
[406991148,1772426361467,-500.0,0.00010795,2]
[406991149,1772426361496,-419.23803864,0.00010795,2]
[406991150,1772426361677,-80.76196136,0.00010795,2]
[406991151,1772426361706,-500.0,0.00010795,2]
[406991152,1772426361736,-500.0,0.00010795,2]
[406991153,1772426361773,-500.0,0.00010795,2]
[406991154,1772426361804,-419.23803864,0.00010795,2]
[406991155,1772426362064,-80.76196136,0.00010795,2]
[406991156,1772426362094,-500.0,0.00010795,2]
[406991157,1772426362125,-500.0,0.00010795,2]
[406991158,1772426362155,-500.0,0.00010795,2]
[406991159,1772426362184,-419.23803864,0.00010795,2]
[406991160,1772426362379,-80.76196136,0.00010795,2]
[406991161,1772426362410,-500.0,0.00010795,2]
[406991162,1772426362443,-500.0,0.00010795,2]
[406991163,1772426362474,-451.97998894,0.00010795,2]
[406991164,1772426362505,-467.2580497,0.00010795,2]
[406991165,1772426362795,-32.7419503,0.00010795,2]
[406991166,1772426362827,-500.0,0.00010795,2]
[406991167,1772426362856,-500.0,0.00010795,2]
[406991168,1772426362888,-500.0,0.00010795,2]
[406991169,1772426362913,-467.2580497,0.00010795,2]
[406991170,1772426363619,-32.7419503,0.00010795,2]
[406991171,1772426363641,-500.0,0.00010795,2]
[406991172,1772426363663,-500.0,0.00010795,2]
[406991173,1772426363686,-500.0,0.00010795,2]
[406991174,1772426363709,-467.2580497,0.00010795,2]
[406991175,1772426363915,-32.7419503,0.00010795,2]
[406991176,1772426363937,-500.0,0.00010795,2]
[406991177,1772426363960,-500.0,0.00010795,2]
[406991178,1772426363983,-500.0,0.00010795,2]
[406991179,1772426364005,-467.2580497,0.00010795,2]
[406991180,1772426364340,-32.7419503,0.00010795,2]
[406991181,1772426364363,-500.0,0.00010795,2]
[406991182,1772426364385,-500.0,0.00010795,2]
[406991183,1772426364408,-500.0,0.00010795,2]
[406991184,1772426364430,-467.2580497,0.00010795,2]
[406991185,1772426364654,-32.7419503,0.00010795,2]
[406991186,1772426364679,-500.0,0.00010795,2]
[406991187,1772426364703,-500.0,0.00010795,2]
[406991188,1772426364726,-500.0,0.00010795,2]
[406991189,1772426364752,-467.2580497,0.00010795,2]
[406991190,1772426364971,-32.7419503,0.00010795,2]
[406991191,1772426364994,-500.0,0.00010795,2]
[406991192,1772426365018,-500.0,0.00010795,2]
[406991193,1772426365042,-500.0,0.00010795,2]
[406991194,1772426365069,-467.2580497,0.00010795,2]
[406991195,1772426365346,-32.7419503,0.00010795,2]
[406991196,1772426365370,-500.0,0.00010795,2]
[406991197,1772426365395,-500.0,0.00010795,2]
[406991198,1772426365418,-500.0,0.00010795,2]
[406991199,1772426365442,-467.2580497,0.00010795,2]
[406991200,1772426365949,-32.7419503,0.00010795,2]
[406991201,1772426365973,-500.0,0.00010795,2]
[406991202,1772426365996,-500.0,0.00010795,2]
[406991203,1772426366020,-500.0,0.00010795,2]
[406991204,1772426366044,-467.2580497,0.00010795,2]
[406991205,1772426366319,-32.7419503,0.00010795,2]
[406991206,1772426366343,-500.0,0.00010795,2]
[406991207,1772426366367,-500.0,0.00010795,2]
[406991208,1772426366389,-500.0,0.00010795,2]
[406991209,1772426366412,-467.2580497,0.00010795,2]
[406991210,1772426366754,-32.7419503,0.00010795,2]
[406991211,1772426366778,-500.0,0.00010795,2]
[406991212,1772426366803,-500.0,0.00010795,2]
[406991213,1772426366829,-500.0,0.00010795,2]
[406991214,1772426366851,-467.2580497,0.00010795,2]
[406991215,1772426367064,-32.7419503,0.00010795,2]
[406991216,1772426367089,-500.0,0.00010795,2]
[406991217,1772426367112,-500.0,0.00010795,2]